bitfinex-derivatives/quotes_SOLF0:USTF0_20250830
["timestamp","ask_amount","ask_price","bid_price","bid_amount"]
[1756529624108,0.2,205.1,205.07,0.03562673]
[1756529624509,3.00883759,205.1,205.07,0.03562673]
[1756529625007,0.2,205.09,205.07,0.03562673]
[1756529626706,2.80883759,205.1,205.07,0.03562673]
[1756529627304,3.00883759,205.1,205.07,0.03562673]
[1756529629114,3.00883759,205.1,205.07,7.49562673]
[1756529630916,3.00883759,205.1,205.07,0.03562673]
[1756529631113,3.00883759,205.1,205.07,7.49562673]
[1756529631514,2.80883759,205.1,205.07,0.03562673]
[1756529631709,2.80883759,205.1,205.08,7.46]
[1756529632316,3.00883759,205.1,205.08,7.46]
[1756529632611,3.00883759,205.1,205.07,0.03562673]
[1756529632817,3.00883759,205.1,205.07,7.49562673]
[1756529633221,0.2,205.1,205.07,7.49562673]
[1756529633421,3.00883759,205.1,205.07,7.49562673]
[1756529633621,0.2,205.1,205.07,7.49562673]
[1756529633820,3.00883759,205.1,205.07,7.49562673]
[1756529636426,3.00883759,205.1,205.07,0.03562673]
[1756529636623,0.2,205.1,205.07,7.49562673]
[1756529636822,3.00883759,205.1,205.07,7.49562673]
[1756529640423,3.00883759,205.1,205.07,0.03562673]
[1756529640727,2.80883759,205.1,205.08,7.46]
[1756529642230,2.80883759,205.1,205.07,0.03562673]
[1756529643030,2.80883759,205.1,205.08,7.46]
[1756529643231,2.80883759,205.1,205.07,0.03562673]
[1756529643430,1.80847259,205.09,205.08,7.46]
[1756529645927,0.2,205.08,205.07,0.03562673]
[1756529647333,3.02644987,205.08,205.07,0.03562673]
[1756529656937,0.2,205.07,205.03,4.10299727]
[1756529657239,2.82644987,205.05,205.01,11.97299727]
[1756529657433,0.2,205.04,205.01,11.97299727]
[1756529658134,0.2,205.04,205.01,4.10299727]
[1756529658336,2.85996893,205.05,205.0,4.10299727]
[1756529658837,0.22,205.04,205.0,11.97299727]
[1756529660043,2.82644987,205.02,205.0,7.87]
[1756529660834,2.82644987,205.02,204.99,4.10299727]
[1756529661033,2.82644987,205.02,205.0,7.87]
[1756529663238,2.82644987,205.02,204.99,4.10299727]
[1756529663640,2.82644987,205.02,205.0,7.87]
[1756529663837,2.82644987,205.02,204.99,4.10299727]
[1756529664238,2.82644987,205.02,205.0,7.87]
[1756529664836,2.82644987,205.02,204.99,4.10299727]
[1756529665043,2.82644987,205.02,205.0,7.87]
[1756529665443,2.82644987,205.02,204.99,4.10299727]
[1756529665742,2.82644987,205.02,205.0,7.87]
[1756529666441,2.82644987,205.02,204.99,4.10299727]
[1756529666643,3.04644987,205.02,205.0,7.87]
[1756529668647,2.82644987,205.02,205.0,7.87]
[1756529668837,2.82644987,205.02,204.99,7.87]
[1756529669041,3.04644987,205.02,204.98,4.10299727]
[1756529669443,1.80996278,204.99,204.98,11.97299727]
[1756529669837,0.22,205.06,204.99,7.87]
[1756529670038,1.80996278,205.0,204.99,7.87]
[1756529671442,1.80996278,205.0,204.98,11.97299727]
[1756529671642,1.80996278,205.0,204.98,7.87]
[1756529671946,1.80996278,205.0,204.97,4.10299727]
[1756529672550,1.80996278,204.98,204.97,11.97299727]
[1756529674549,0.03461301,205.02,204.98,7.87]
[1756529674743,1.80996278,205.0,204.97,4.10299727]
[1756529675042,1.80996278,205.0,204.98,7.87]
[1756529675642,1.80996278,205.0,204.97,4.10299727]
[1756529677447,1.80996278,205.0,204.98,7.43]
[1756529677651,1.80996278,205.0,204.97,4.10299727]
[1756529677949,1.80996278,205.0,204.96,4.10299727]
[1756529678851,1.80996278,205.0,204.97,7.43]
[1756529679050,1.80996278,205.0,204.96,4.10299727]
[1756529679554,1.80996278,205.0,204.97,7.43]
[1756529679851,1.80996278,205.0,204.96,4.10299727]
[1756529680046,1.80996278,205.0,204.97,7.43]
[1756529680553,2.01996278,205.0,204.95,7.43]
[1756529680755,2.01996278,205.0,204.96,7.43]
[1756529681049,2.01996278,205.0,204.95,4.10299727]
[1756529681251,2.01996278,205.0,204.96,7.43]
[1756529681550,2.01996278,205.0,204.95,4.10299727]
[1756529681749,2.01996278,205.0,204.96,7.43]
[1756529682143,2.01996278,205.0,204.95,4.10299727]
[1756529682343,2.01996278,205.0,204.96,7.43]
[1756529682850,2.01996278,205.0,204.95,4.10299727]
[1756529683347,0.21,204.99,204.96,7.43]
[1756529683655,0.21,204.99,204.95,4.10299727]
[1756529683844,0.21,204.99,204.96,7.43]
[1756529684557,0.21,204.99,204.95,4.10299727]
[1756529685352,0.21,204.99,204.96,7.43]
[1756529685650,1.80996278,205.0,204.95,4.10299727]
[1756529686053,2.01996278,205.0,204.96,7.43]
[1756529686256,2.01996278,205.0,204.95,4.10299727]
[1756529686954,2.01996278,205.0,204.95,4.09900358]
[1756529687451,1.80996278,204.98,204.96,7.43]
[1756529687849,1.80996278,204.98,204.94,4.09900358]
[1756529688855,1.80996278,204.98,204.94,7.43]
[1756529689847,1.80996278,204.98,204.93,4.09900358]
[1756529690052,1.80996278,204.98,204.94,7.43]
[1756529690254,1.80996278,204.98,204.93,4.09900358]
[1756529690553,1.84111706,204.98,204.94,7.43]
[1756529691058,0.21,204.97,204.95,7.43]
[1756529691257,1.84111706,204.98,204.93,4.09900358]
[1756529691458,2.05111706,204.98,204.94,7.43]
[1756529691657,2.05111706,204.98,204.93,4.09900358]
[1756529691857,2.05111706,204.98,204.94,7.43]
[1756529692058,2.05111706,204.98,204.93,4.09900358]
[1756529692857,1.84111706,204.98,204.94,7.43]
[1756529693460,0.03115428,204.98,204.93,4.09900358]
[1756529693650,0.03115428,204.98,204.94,7.43]
[1756529694052,0.21,204.97,204.94,7.43]
[1756529694252,0.03115428,204.98,204.94,7.43]
[1756529694460,0.03115428,204.98,204.96,7.43]
[1756529694859,0.24115428,204.98,204.96,7.43]
[1756529695453,0.03115428,204.98,204.94,4.09900358]
[1756529695659,0.03115428,204.98,204.95,7.43]
[1756529696152,0.03115428,204.98,204.95,9.23996278]
[1756529696562,0.03115428,204.98,204.95,1.80996278]
[1756529696863,0.03115428,204.98,204.96,7.43]
[1756529697062,0.03115428,204.98,204.95,1.80996278]
[1756529697564,0.03115428,204.98,204.96,7.43]
[1756529698063,0.03115428,204.98,204.95,1.80996278]
[1756529698258,0.03115428,204.98,204.96,7.43]
[1756529698866,0.03115428,204.98,204.95,5.90896636]
[1756529699160,0.03115428,204.98,204.96,7.43]
[1756529699357,0.03115428,204.98,204.94,5.90896636]
[1756529699960,0.03115428,204.98,204.95,7.43]
[1756529700165,0.03115428,204.98,204.94,5.90896636]
[1756529700462,0.03115428,204.98,204.95,7.43]
[1756529701064,0.03115428,204.98,204.96,7.43]
[1756529701464,0.03115428,204.98,204.95,4.09900358]
[1756529701668,0.03115428,204.98,204.96,7.43]
[1756529702068,0.03115428,204.98,204.95,4.09900358]
[1756529702863,0.03115428,204.98,204.96,7.43]
[1756529703367,0.03115428,204.98,204.95,4.09900358]
[1756529703563,0.03115428,204.98,204.96,7.43]
[1756529704067,0.03115428,204.98,204.95,4.09900358]
[1756529704363,0.03115428,204.98,204.95,5.90896636]
[1756529704662,0.03115428,204.98,204.97,7.43]
[1756529705066,1.80996278,205.06,204.97,4.09900358]
[1756529705269,1.05909113,205.07,204.95,5.45110456]
[1756529705270,0.21,205.07,205.01,11.53514892]
[1756529705461,0.21,205.07,205.02,7.43]
[1756529705665,0.21,205.07,205.02,1.80996278]
[1756529705967,108.76892792,205.11,205.05,7.43]
[1756529706262,1.80996278,205.09,205.03,13.3451117]
[1756529706567,1.80996278,205.09,205.03,5.9151117]
[1756529706765,1.80996278,205.09,205.04,7.43]
[1756529706963,1.80996278,205.09,205.03,5.9151117]
[1756529707462,1.80996278,205.09,205.03,4.10514892]
[1756529707658,1.80996278,205.09,205.04,1.80996278]
[1756529708763,1.80996278,205.14,205.09,7.3]
[1756529709161,1.80996278,205.14,205.08,7.3]
[1756529709357,1.80996278,205.14,205.09,0.0362224]
[1756529709567,0.21,205.13,205.09,7.3362224]
[1756529709766,0.21,205.13,205.1,7.3]
[1756529710565,1.80996278,205.14,205.1,7.3]
[1756529710775,2.01996278,205.17,205.1,7.3]
[1756529711062,327.86,205.27,205.11,1.80996278]
[1756529711264,327.86,205.27,205.15,9.10996278]
[1756529711265,1.80996278,205.21,205.15,9.10996278]
[1756529711661,1.80996278,205.21,205.16,0.03409406]
[1756529711863,1.80996278,205.21,205.16,7.33409406]
[1756529712059,0.21,205.2,205.16,7.33409406]
[1756529712667,1.05847007,205.23,205.17,7.3]
[1756529712973,1.80996278,205.22,205.17,7.3]
[1756529713266,0.21,205.19,205.16,7.33409406]
[1756529715866,3.03332626,205.21,205.17,7.3]
[1756529716268,0.21,205.2,205.17,7.3]
[1756529716465,2.82332626,205.18,205.16,0.03409406]
[1756529716667,119.93,205.17,205.16,0.03409406]
[1756529719973,122.75332626,205.17,205.16,0.03409406]
[1756529720676,123.02332626,205.17,205.06,7.3]
[1756529720974,3.04332626,205.12,205.06,7.3]
[1756529722071,0.03211507,205.11,205.01,7.3]
[1756529722371,0.03211507,205.11,205.01,11.40514892]
[1756529722569,0.03211507,205.11,205.02,10.12332626]
[1756529722771,0.03211507,205.11,205.03,7.3]
[1756529729166,0.03211507,205.11,205.03,10.12332626]
[1756529729472,0.03211507,205.11,205.04,7.3]
[1756529735979,0.25211507,205.11,205.04,7.3]
[1756529737074,0.03211507,205.11,205.04,7.3]
[1756529742178,0.03211507,205.11,205.06,2.82332626]
[1756529742378,0.03211507,205.11,205.07,7.81]
[1756529743086,0.03211507,205.11,205.06,4.10514892]
[1756529743387,0.03211507,205.11,205.05,7.81]
[1756529748286,0.03211507,205.11,205.05,11.91514892]
[1756529748489,0.03211507,205.11,205.06,7.81]
[1756529748796,0.03211507,205.11,205.05,4.10514892]
[1756529749091,0.03211507,205.11,205.06,7.81]
[1756529749297,0.23,205.09,205.05,7.81]
[1756529749492,2.82332626,205.1,205.04,7.81]
[1756529749685,2.82332626,205.1,205.04,4.10514892]
[1756529749885,2.82332626,205.1,205.05,7.81]
[1756529750083,0.03211507,205.11,205.05,7.81]
[1756529750788,0.03211507,205.11,205.05,4.10514892]
[1756529750987,0.23,205.1,205.05,7.81]
[1756529751490,0.26211507,205.11,205.05,7.81]
[1756529752483,0.26211507,205.11,205.05,11.91514892]
[1756529753301,0.26211507,205.11,205.05,7.81]
[1756529754893,0.03211507,205.11,205.05,7.81]
[1756529755596,0.03211507,205.11,205.05,4.10514892]
[1756529755799,0.03211507,205.11,205.06,7.81]
[1756529756093,0.03211507,205.11,205.05,4.10514892]
[1756529756894,0.03211507,205.11,205.03,5.45110456]
[1756529756895,0.03211507,205.11,205.06,11.91514892]
[1756529757099,0.03211507,205.11,205.06,4.10514892]
[1756529757388,0.03211507,205.11,205.07,7.81]
[1756529757794,0.03211507,205.11,205.06,7.81]
[1756529757993,0.03211507,205.11,205.05,4.10514892]
[1756529758985,0.03211507,205.11,205.06,7.81]
[1756529759191,0.03211507,205.11,205.05,4.10514892]
[1756529759395,0.03211507,205.11,205.06,4.10514892]
[1756529759793,0.23,205.1,205.06,7.81]
[1756529760296,0.23,205.1,205.04,4.10514892]
[1756529761191,0.23,205.07,205.03,11.91514892]
[1756529761589,2.82332626,205.08,205.03,4.10514892]
[1756529761896,27.13332626,205.08,205.02,4.10514892]
[1756529762495,2.82332626,205.05,205.02,11.91514892]
[1756529762701,3.05332626,205.05,205.02,11.91514892]
[1756529763097,2.82332626,205.05,205.03,7.81]
[1756529763599,2.82332626,205.05,205.02,4.10514892]
[1756529763900,2.82332626,205.05,205.03,7.81]
[1756529764897,2.82332626,205.05,205.02,4.10514892]
[1756529765098,2.82332626,205.05,205.03,7.81]
[1756529765506,2.82332626,205.05,205.02,4.10514892]
[1756529765807,2.82332626,205.05,205.03,7.81]
[1756529766403,2.82332626,205.05,205.02,4.10514892]
[1756529766899,2.82332626,205.05,205.03,7.44]
[1756529767103,2.82332626,205.05,205.02,4.10514892]
[1756529767300,2.82332626,205.05,205.03,7.44]
[1756529770613,2.82332626,205.05,205.02,7.44]
[1756529770907,2.82332626,205.05,205.01,4.10325296]
[1756529771315,2.82332626,205.05,205.02,7.44]
[1756529771511,2.82332626,205.05,205.01,4.10325296]
[1756529771907,2.82332626,205.05,205.02,7.44]
[1756529772213,2.82332626,205.05,205.01,4.10325296]
[1756529772409,2.82332626,205.05,205.02,7.44]
[1756529772804,2.82332626,205.05,205.01,4.10325296]
[1756529773013,2.82332626,205.05,205.02,7.44]
[1756529773405,2.82332626,205.05,205.01,4.10325296]
[1756529774413,2.82332626,205.05,205.02,7.44]
[1756529774614,2.82332626,205.05,205.01,4.10325296]
[1756529775112,2.82332626,205.05,205.02,7.44]
[1756529775315,1.80941559,205.03,205.02,7.44]
[1756529776515,0.22,205.02,204.99,11.54325296]
[1756529776710,1.80941559,205.01,204.99,4.10325296]
[1756529776915,1.80941559,205.01,204.99,7.44]
[1756529778611,1.80941559,205.01,204.97,4.10325296]
[1756529778910,1.80941559,205.01,204.98,7.44]
[1756529779117,1.80941559,205.01,204.97,4.10325296]
[1756529779412,0.03088043,205.01,204.97,7.44]
[1756529779615,0.03088043,205.01,204.96,4.10325296]
[1756529779814,0.03088043,205.01,204.97,7.44]
[1756529780017,0.03088043,205.01,204.96,4.10325296]
[1756529780210,0.03088043,205.01,204.97,7.44]
[1756529781014,0.24,205.0,204.97,7.44]
[1756529781518,0.27088043,205.01,204.96,4.13674956]
[1756529782215,0.03088043,205.01,204.97,7.44]
[1756529782621,0.03088043,205.01,204.96,4.13674956]
[1756529782814,0.03088043,205.01,204.97,7.44]
[1756529783011,0.03088043,205.01,204.96,4.13674956]
[1756529783315,0.03088043,205.01,204.97,7.44]
[1756529783718,0.03088043,205.01,204.96,0.0334966]
[1756529784316,0.03088043,205.01,204.97,7.44]
[1756529784616,0.03088043,205.01,204.96,0.0334966]
[1756529785126,0.03088043,205.01,204.97,7.44]
[1756529785322,0.03088043,205.01,204.96,0.0334966]
[1756529786021,0.03088043,205.01,204.97,7.44]
[1756529786223,0.03088043,205.01,204.96,0.0334966]
[1756529786414,0.03088043,205.01,204.97,7.44]
[1756529786618,0.03088043,205.01,204.96,0.0334966]
[1756529787223,0.03088043,205.01,204.97,7.44]
[1756529788126,0.03088043,205.01,204.96,0.0334966]
[1756529788422,0.03088043,205.01,204.97,7.44]
[1756529788615,0.03088043,205.01,204.96,0.0334966]
[1756529789625,0.03088043,205.01,204.97,7.44]
[1756529791425,0.03088043,205.01,204.96,0.0334966]
[1756529791627,0.03088043,205.01,204.97,7.44]
[1756529791927,0.03088043,205.01,204.96,0.0334966]
[1756529792328,0.03088043,205.01,204.97,7.44]
[1756529792728,0.03088043,205.01,204.96,0.0334966]
[1756529793034,0.03088043,205.01,204.97,7.44]
[1756529794223,0.03088043,205.01,204.96,4.13674956]
[1756529794426,0.03088043,205.01,204.97,7.44]
[1756529794933,0.03088043,205.01,204.96,4.13674956]
[1756529795122,0.03088043,205.01,204.97,7.44]
[1756529795327,0.03088043,205.01,204.96,4.13674956]
[1756529795632,0.03088043,205.01,204.96,0.0334966]
[1756529795824,0.03088043,205.01,204.97,7.44]
[1756529796030,0.03088043,205.01,204.96,0.0334966]
[1756529796829,0.03088043,205.01,204.97,7.61]
[1756529797030,0.03088043,205.01,204.96,0.0334966]
[1756529797221,0.03088043,205.01,204.97,7.61]
[1756529797530,0.03088043,205.01,204.96,0.0334966]
[1756529797926,0.03088043,205.01,204.97,7.61]
[1756529798331,0.03088043,205.01,204.96,4.13674956]
[1756529799132,0.03088043,205.01,204.97,7.61]
[1756529799434,0.23088043,205.01,204.97,7.61]
[1756529799730,0.2,205.0,204.97,7.61]
[1756529799931,2.85905181,205.01,204.96,4.13674956]
[1756529800436,2.85905181,205.01,204.97,7.61]
[1756529800826,0.03088043,205.01,204.98,4.10325296]
[1756529801026,0.03088043,205.01,205.0,11.71325296]
[1756529803828,0.03088043,205.01,205.0,7.61]
[1756529804833,5.44854345,205.15,205.0,7.61]
[1756529805133,1.80956194,205.05,205.01,4.10325296]
[1756529805333,1.80956194,205.05,205.02,7.61]
[1756529805731,1.80956194,205.05,205.01,4.10325296]
[1756529806029,1.80956194,205.05,205.02,7.61]
[1756529806239,1.80956194,205.05,205.01,4.13682887]
[1756529806528,1.80956194,205.05,205.02,7.61]
[1756529806727,1.80956194,205.05,205.01,4.13682887]
[1756529807134,1.80956194,205.05,205.02,7.61]
[1756529807335,2.03956194,205.05,205.02,7.61]
[1756529807731,1.80956194,205.05,205.02,7.61]
[1756529808433,1.80956194,205.05,205.01,4.13682887]
[1756529808635,1.80956194,205.05,205.02,7.61]
[1756529809137,1.80956194,205.03,205.02,7.61]
[1756529811240,0.23,205.02,205.01,0.03357591]
[1756529817142,107.20350295,205.13,205.01,0.03357591]
[1756529817143,22.16,205.07,205.01,0.03357591]
[1756529817338,0.23,205.06,205.02,7.61]
[1756529817533,107.20350295,205.13,205.01,4.13682887]
[1756529817534,1.80956194,205.04,205.01,4.13682887]
[1756529817741,1.80956194,205.04,205.02,7.61]
[1756529819041,1.80956194,205.04,205.01,4.10325296]
[1756529819544,2.82686401,205.07,205.02,7.61]
[1756529819742,2.82686401,205.07,205.01,4.10325296]
[1756529819946,2.82686401,205.07,205.02,7.61]
[1756529820142,2.82686401,205.07,205.01,4.10325296]
[1756529820348,2.82686401,205.07,205.02,7.61]
[1756529820546,2.82686401,205.07,205.01,4.10325296]
[1756529820747,2.82686401,205.07,205.02,7.61]
[1756529821046,2.82686401,205.07,205.01,4.10325296]
[1756529821243,2.82686401,205.07,205.02,7.61]
[1756529821645,2.82686401,205.07,205.01,4.10325296]
[1756529821840,2.82686401,205.07,205.01,11.71325296]
[1756529822246,0.23,205.03,205.01,11.71325296]
[1756529822546,0.23,205.03,205.0,4.13773697]
[1756529822849,2.82686401,205.04,205.01,7.61]
[1756529823148,2.82686401,205.04,205.02,7.61]
[1756529823349,2.82686401,205.04,205.01,4.10325296]
[1756529823845,2.82686401,205.04,205.0,4.13773697]
[1756529824045,2.82686401,205.04,205.0,0.03448401]
[1756529824248,0.23,205.02,205.0,0.03448401]
[1756529825049,3.05686401,205.04,205.01,7.61]
[1756529827253,0.28,205.03,205.0,0.03448401]
[1756529827449,2.82686401,205.04,205.0,0.03448401]
[1756529827653,0.28,205.02,205.0,0.03448401]
[1756529829353,0.28,205.03,205.0,0.03448401]
[1756529829657,0.28,205.02,205.0,0.03448401]
[1756529829851,2.82686401,205.04,205.0,0.03448401]
[1756529830157,0.28,205.03,205.0,0.03448401]
[1756529830355,0.28,205.02,205.0,0.03448401]
[1756529830956,2.82686401,205.04,205.01,7.73]
[1756529831153,3.10686401,205.04,205.01,7.73]
[1756529831356,2.82686401,205.04,205.0,0.03448401]
[1756529831552,0.28,205.03,205.0,0.03448401]
[1756529831749,0.28,205.03,205.0,7.76448401]
[1756529832558,0.28,205.03,205.01,7.73]
[1756529833858,0.28,205.02,205.0,0.03448401]
[1756529835759,3.10686401,205.01,205.0,0.03448401]
[1756529835955,0.28,205.01,205.0,0.03448401]
[1756529836155,3.10686401,205.01,205.0,0.03448401]
[1756529836860,3.58686401,205.01,205.0,0.03448401]
[1756529837063,3.10686401,205.01,205.0,0.03448401]
[1756529839257,2.09046402,205.01,205.0,0.03448401]
[1756529841363,1.81046402,205.01,205.0,7.76448401]
[1756529841667,2.08046402,205.01,205.0,0.03448401]
[1756529851565,0.27,205.0,204.92,11.83178624]
[1756529851766,1.81046402,204.96,204.92,7.73]
[1756529851968,1.81046402,204.96,204.91,7.73]
[1756529852664,1.81046402,204.96,204.9,4.10178624]
[1756529852860,1.84408337,204.96,204.91,7.73]
[1756529853066,1.84408337,204.96,204.9,4.10178624]
[1756529853262,1.84408337,204.96,204.91,7.73]
[1756529853464,1.84408337,204.96,204.9,4.10178624]
[1756529853970,1.81046402,204.94,204.9,4.10178624]
[1756529854171,1.81046402,204.94,204.91,7.73]
[1756529854670,1.81046402,204.94,204.9,4.10178624]
[1756529855165,1.81046402,204.94,204.91,7.73]
[1756529855369,1.81046402,204.94,204.9,4.10178624]
[1756529856273,1.81046402,204.94,204.91,7.73]
[1756529857168,1.81046402,204.94,204.9,4.10178624]
[1756529857574,1.81046402,204.94,204.91,7.27]
[1756529858570,1.81046402,204.94,204.9,4.0985185]
[1756529858875,1.81046402,204.94,204.91,7.27]
[1756529859069,1.81046402,204.94,204.9,4.0985185]
[1756529859270,1.81046402,204.94,204.91,7.27]
[1756529860175,1.81046402,204.94,204.9,4.0985185]
[1756529860373,1.81046402,204.94,204.91,7.27]
[1756529860770,1.81046402,204.94,204.9,4.0985185]
[1756529861171,1.81046402,204.94,204.91,7.27]
[1756529861470,1.81046402,204.94,204.9,4.0985185]
[1756529861775,1.81046402,204.94,204.91,7.27]
[1756529862575,1.81046402,204.94,204.9,4.0985185]
[1756529862772,1.81046402,204.94,204.91,7.27]
[1756529863177,1.81046402,204.94,204.9,4.0985185]
[1756529863375,1.81046402,204.94,204.91,7.27]
[1756529863876,1.81046402,204.94,204.9,4.0985185]
[1756529864972,1.81046402,204.94,204.91,7.27]
[1756529865276,1.81046402,204.94,204.9,4.0985185]
[1756529865878,1.81046402,204.94,204.91,7.27]
[1756529866074,0.27,204.93,204.9,4.0985185]
[1756529866276,0.27,204.93,204.91,7.27]
[1756529866880,2.08046402,204.94,204.91,7.27]
[1756529868278,2.08046402,204.94,204.89,4.0985185]
[1756529869583,1.81046402,204.94,204.9,7.27]
[1756529869882,1.81046402,204.94,204.89,4.0985185]
[1756529870278,0.03361935,204.96,204.91,7.27]
[1756529870484,1.81046402,204.95,204.91,7.27]
[1756529870982,1.81046402,204.95,204.9,4.0985185]
[1756529871375,1.81046402,204.95,204.91,7.27]
[1756529871774,2.08046402,204.93,204.9,4.0985185]
[1756529871989,2.08046402,204.93,204.9,7.27]
[1756529872477,1.81046402,204.91,204.9,7.27]
[1756529873279,0.03361935,204.96,204.9,7.27]
[1756529873479,1.81046402,204.95,204.9,4.0985185]
[1756529873880,1.81046402,204.95,204.91,7.27]
[1756529874278,1.81046402,204.93,204.88,4.0985185]
[1756529874484,1.81046402,204.89,204.88,7.27]
[1756529878883,1.81046402,204.89,204.87,11.3685185]
[1756529879088,1.81046402,204.89,204.88,11.3685185]
[1756529879987,1.84458864,204.91,204.88,4.0985185]
[1756529880590,1.84458864,204.91,204.89,7.27]
[1756529881189,1.84458864,204.91,204.88,4.0985185]
[1756529882284,1.84458864,204.91,204.89,7.27]
[1756529882487,1.84458864,204.91,204.88,4.0985185]
[1756529882989,1.84458864,204.91,204.89,7.27]
[1756529883585,1.84458864,204.91,204.88,11.3685185]
[1756529884085,1.84458864,204.91,204.89,7.27]
[1756529884683,0.03412462,204.91,204.89,7.27]
[1756529884884,1.81046402,204.9,204.89,7.27]
[1756529887894,2.07046402,204.9,204.88,4.0985185]
[1756529888090,1.81046402,204.9,204.88,11.4285185]
[1756529888285,0.48,204.89,204.87,4.0985185]
[1756529888489,0.48,204.89,204.67,14.64]
[1756529888490,0.26,204.87,204.77,7.33]
[1756529888693,1.81046402,204.81,204.75,5.45110456]
[1756529888897,3.68733908,204.8,204.76,7.33]
[1756529889191,0.03251835,204.8,204.75,5.45110456]
[1756529889391,3.68341211,204.79,204.72,12.78110456]
[1756529889586,3.68341211,204.78,204.72,7.33]
[1756529889790,0.03251835,204.8,204.72,7.33]
[1756529890191,3.09484971,204.78,204.71,7.33]
[1756529890994,0.26,204.78,204.71,7.33]
[1756529891195,2.83484971,204.77,204.71,7.33]
[1756529901996,2.83484971,204.74,204.66,7.33]
[1756529902700,0.0372228,204.72,204.66,7.33]
[1756529904803,0.0372228,204.72,204.66,120.8]
[1756529905002,0.0372228,204.72,204.67,7.33]
[1756529909910,0.0372228,204.72,204.68,120.68]
[1756529910816,0.0372228,204.72,204.65,7.33]
[1756529911111,0.0372228,204.72,204.67,7.33]
[1756529911505,0.0372228,204.72,204.64,2.83484971]
[1756529911713,0.0372228,204.72,204.65,86.97]
[1756529912012,0.0372228,204.72,204.63,7.33]
[1756529912209,0.0372228,204.72,204.65,7.33]
[1756529912409,0.0372228,204.72,204.66,120.62]
[1756529912608,0.0372228,204.72,204.67,7.33]
[1756529913107,0.0372228,204.72,204.67,120.62]
[1756529913310,0.0372228,204.72,204.67,120.6]
[1756529913611,0.0372228,204.72,204.64,7.33]
[1756529913911,0.0372228,204.72,204.66,7.33]
[1756529915313,1.85188633,204.72,204.66,9.14466353]
[1756529915511,0.0372228,204.72,204.66,7.33]
[1756529915715,0.0372228,204.72,204.69,7.33]
[1756529915909,0.0372228,204.72,204.7,7.33]
[1756529916109,0.0372228,204.72,204.69,120.54]
[1756529916509,0.0372228,204.72,204.68,1.81466353]
[1756529916710,0.0372228,204.72,204.68,36.11466353]
[1756529916906,0.0372228,204.72,204.69,7.8]
[1756529917615,0.0372228,204.72,204.68,122.37466353]
[1756529918714,0.0372228,204.72,204.69,7.8]
[1756529919014,0.0372228,204.72,204.7,1.81466353]
[1756529919207,0.0372228,204.72,204.71,7.8]
[1756529919610,0.0372228,204.72,204.71,36.86]
[1756529921612,0.29,204.86,204.72,7.8]
[1756529921811,3.1642883,204.9,204.78,7.8]
[1756529922015,3.1642883,204.9,204.8,7.8]
[1756529922415,3.1642883,204.9,204.82,7.8]
[1756529923113,3.1642883,204.9,204.84,0.03722085]
[1756529931824,0.33,204.9,204.84,7.83722085]
[1756529932220,2.8342883,204.85,204.84,0.03722085]
[1756529932429,3.1642883,204.85,204.84,0.03722085]
[1756529932821,3.6442883,204.85,204.77,7.8]
[1756529933126,2.8342883,204.88,204.77,7.8]
[1756529933127,0.33,204.81,204.77,7.8]
[1756529933628,2.8342883,204.82,204.77,7.8]
[1756529934127,0.33,204.81,204.77,7.8]
[1756529937325,2.86630186,204.82,204.77,7.8]
[1756529937530,0.33,204.81,204.72,7.8]
[1756529941135,0.33,204.78,204.72,7.8]
[1756529941833,0.03106559,204.77,204.69,5.44113609]
[1756529942135,0.03106559,204.77,204.7,7.8]
[1756529948336,0.03106559,204.77,204.71,4.08891252]
[1756529948538,0.03106559,204.77,204.7,11.88891252]
[1756529948842,0.33106559,204.77,204.71,7.33]
[1756529959343,1.81419885,204.76,204.71,7.33]
[1756529961443,1.81419885,204.76,204.72,7.33]
[1756529961645,1.81419885,204.76,204.71,4.09216596]
[1756529962244,1.81419885,204.76,204.72,7.33]
[1756529962438,2.15419885,204.74,204.7,7.33]
[1756529962845,1.81419885,204.74,204.69,4.09216596]
[1756529963640,1.81419885,204.74,204.7,7.33]
[1756529963838,1.81419885,204.74,204.69,4.09216596]